Cogmind - Beta 17.1 @@@ ROGUE MODE // 2026.09.18 @ 14:46:09 Player: Caluan Result: Self-destructed Performance ------------- Evolutions (5) 2500 Regions Visited (15) 3000 Robots Destroyed (182) 910 Value Destroyed (7647) 7647 Prototype IDs (6) 120 Alien Tech Used (0) 0 Bonus (2866) 2866 TOTAL SCORE: 17043 Bonus ------- High Alert Combat Kills 514 Follower Combat Kills 472 Entered Garrisons 400 Used RIF Installer 1000 Entered DSFs 500 Friendly Fire -20 Cogmind --------- Core Integrity 160/1000 Matter 214/300 Energy 91/100 System Corruption 21% Temperature Cool (0) Movement Core (1850) Ox36 Location -5/Factory Parts ------- > --- POWER (1) -------- Reinforced Deuterium Engine > --- PROPULSION (4) --- (None) > --- UTILITY (8) ------ Huge Storage Unit Relay Coupler [Duelist] (5) > --- WEAPON (4) ------- Heavy Laser Variable Charge Gun Variable Charge Gun > --- INVENTORY (25) --- Compact Matter Pod (150) Advanced Weapon Cycler Graphene Brace Relay Coupler [Specialist] (26) Improved Datajack Improved Remote Datajack Improved Plasma Cutter Peak State ------------ > --- POWER ------------ Particle Reactor > --- PROPULSION ------- Light Treads Armored Treads Advanced Treads Medium Treads > --- UTILITY ---------- Huge Storage Unit Advanced Weapon Cycler Graphene Brace Relay Coupler [Sentry] Relay Coupler [Specialist] Relay Coupler [Hunter] > --- WEAPON ----------- Gauss Rifle Coil Gun Coil Gun Hypervelocity Gauss Rifle > --- INVENTORY -------- Light Nuclear Core Light Treads Light Treads Light Treads Light Treads Light Treads Advanced Treads Advanced Treads Compact Matter Pod Transmission Jammer Relay Coupler [NC] Relay Coupler [NC] Relay Coupler [Brawler] Relay Coupler [Duelist] Relay Coupler [Sentry] Relay Coupler [Specialist] Relay Coupler [Hunter] Gauss Rifle Coil Gun Rocket Launcher Heavy Missile Launcher Improved Datajack Remote Datajack Plasma Cutter Powered Hammer [Rating: 75] Favorites ----------- Power Improved Ion Engine Engine Improved Ion Engine Power Core Light Fission Core Reactor Reinforced Antimatter Reactor Propulsion Light Treads Treads Light Treads Leg Carbon-fiber Leg Wheel Armored Wheel Utility Improved Light Armor Plating Device Seismic Detector Storage High-capacity Storage Unit Processor Core Analyzer Hackware Relay Coupler [Sentry] Protection Improved Light Armor Plating Weapon Improved Assault Rifle Energy Gun Spread Laser Energy Cannon Advanced Beam Cannon Ballistic Gun Improved Assault Rifle Launcher Rocket Launcher Special Weapon Remote Datajack Impact Weapon Powered Hammer Piercing Weapon Heavy Pick Special Melee Weapon Improved Datajack Build | -11 -10 -10 -9 -9 -9 -8 -8 -7 -7 -7 -7 -6 -6 -6 -5 ------- Run | Yrd Mat Min Mat Min Exi Min Mat Fac Gar Fac DSF Fac Gar Fac Fac Slots Evolved 10 | . . . 2 . . . 2 2 . . . 2 . . 2 Power . | . . . . . . . . . . . . . . . . Propulsion 2 | . . . . . . . 1 1 . . . . . . . Utility 6 | . . . 1 . . . 1 1 . . . 1 . . 2 Weapon 2 | . . . 1 . . . . . . . . 1 . . . Parts Attached 157 | 6 7 5 22 1 1 1 21 3 24 . 8 7 24 8 19 Power 17 | 1 1 1 2 . . . 5 . 1 . . 1 4 . 1 Engine 13 | 1 1 1 2 . . . 4 . 1 . . . 2 . 1 Core 2 | . . . . . . . 1 . . . . 1 . . . Reactor 2 | . . . . . . . . . . . . . 2 . . Propulsion 44 | 2 1 2 5 1 . . 5 1 7 . 3 3 5 2 7 Treads 41 | 2 1 2 5 1 . . 5 1 7 . 3 3 5 2 4 Leg 2 | . . . . . . . . . . . . . . . 2 Wheel 1 | . . . . . . . . . . . . . . . 1 Hover . | . . . . . . . . . . . . . . . . Flight . | . . . . . . . . . . . . . . . . Utility 45 | 1 4 1 5 . 1 1 6 2 6 . 1 2 7 5 3 Device 12 | . 1 1 2 . . 1 2 . 3 . . . 1 . 1 Storage 6 | 1 1 . . . 1 . 1 . . . . 1 . . 1 Processor 4 | . 1 . . . . . 2 . . . . . 1 . . Hackware 16 | . . . . . . . . 1 2 . 1 1 5 5 1 Protection 7 | . 1 . 3 . . . 1 1 1 . . . . . . Artifact . | . . . . . . . . . . . . . . . . Weapon 51 | 2 1 1 10 . . . 5 . 10 . 4 1 8 1 8 Energy Gun 9 | . 1 1 1 . . . . . 1 . . . . . 5 Energy Cannon 1 | . . . 1 . . . . . . . . . . . . Ballistic Gun 33 | 2 . . 6 . . . 5 . 6 . 3 1 8 1 1 Ballistic Cannon . | . . . . . . . . . . . . . . . . Launcher 3 | . . . 2 . . . . . 1 . . . . . . Special Weapon 2 | . . . . . . . . . . . 1 . . . 1 Impact Weapon 1 | . . . . . . . . . 1 . . . . . . Slashing Weapon . | . . . . . . . . . . . . . . . . Piercing Weapon 1 | . . . . . . . . . . . . . . . 1 Special Melee Weapon 1 | . . . . . . . . . 1 . . . . . . Unidentified Prototypes 4 | . . . 2 . . . 1 . . . . . . . 1 Corrupted Parts 2 | . . . . 1 . . . . . . . . . . 1 System Corruption 2 | . . . . 1 . . . . . . . . . . 1 Parts Lost 70 | . 3 1 4 . . . 6 . 16 . 2 . 5 2 31 Power 6 | . 1 1 1 . . . . . 1 . . . . . 2 Propulsion 25 | . 1 . . . . . . . 7 . 1 . 2 2 12 Utility 14 | . . . 2 . . . 3 . 2 . 1 . . . 6 Weapon 25 | . 1 . 1 . . . 3 . 6 . . . 3 . 11 Highest Loss Streak 9 | . 2 1 1 . . . 6 . 9 . 2 . 1 2 9 To Critical Strikes . | . . . . . . . . . . . . . . . . Average Backups 16 | 1 11 13 14 15 15 15 17 15 18 20 19 20 24 22 12 Power . | . . . . . . . . . . . . . 1 1 . Propulsion 5 | . 4 3 6 6 6 6 7 6 5 6 5 5 6 6 1 Utility 4 | . 1 4 2 2 2 2 2 4 5 6 6 5 7 8 5 Weapon 4 | . 4 6 5 6 6 6 5 3 4 5 5 7 6 4 1 Tool/Special . | . . . . . . . . . . . . . . . . Unused Backups 25 | . 6 1 5 . . . 4 1 1 . . . 3 . 4 Power 1 | . . . . . . . . . . . . . 1 . . Propulsion 6 | . 4 . 2 . . . . . . . . . . . . Utility 6 | . . . . . . . 4 . . . . . . . 2 Weapon 9 | . 2 1 3 . . . . 1 . . . . 2 . . Tool/Special 3 | . . . . . . . . . 1 . . . . . 2 Average Slot Usage (%) 90 | . 98 99 97 100 100 100 96 88 85 100 97 85 96 97 59 Engine 7 | . 13 13 10 11 11 11 7 7 6 7 7 4 . . 2 Treads 23 | . 27 28 22 22 22 22 26 30 29 30 30 26 25 24 9 Device 6 | . 6 14 11 11 11 11 9 4 3 . . . 5 4 4 Storage 8 | . 14 14 11 11 11 11 9 7 7 7 7 6 6 6 5 Processor 3 | . 3 . . . . . 3 7 7 7 5 . 1 6 4 Hackware 6 | . . . . . . . . . . 15 17 13 20 20 12 Protection 5 | . 3 . 9 11 11 11 11 6 5 7 4 6 1 . . Energy Gun 2 | . 4 26 2 . . . . . 1 . . . . . 1 Ballistic Gun 21 | . 23 1 29 33 33 33 26 23 17 15 20 25 22 20 8 Impact Weapon 1 | . . . . . . . . . 3 7 . . 2 1 1 Peak Build Rating 75 | 6 10 14 20 22 22 22 37 42 44 44 46 56 75 71 69 Average Rating 34 | 5 8 12 17 20 22 21 29 38 35 44 44 51 66 64 46 On Entrance 31 | . 6 10 14 19 22 22 22 36 36 44 44 45 56 68 59 Avg Prop Armor Cover (%) 10 | . . . . . . . . . . . . . . . 10 Naked Turns . | . . . . . . . . . . . . . . . . Heaviest Build 126 | 14 32 30 41 40 60 60 66 85 85 64 71 116 125 125 126 Greatest Support 95 | 40 40 43 43 51 51 51 73 83 86 86 86 87 92 88 95 Greatest Overweight (x) 33 | . . . 1 . 1 1 1 1 1 . . 1 1 2 33 Average Overweight (x) . | . . . . . . 1 . . . . . . 1 1 5 Largest Inventory Capacity 25 | 8 15 15 15 15 20 20 20 20 20 20 20 25 25 25 25 Average Capacity 19 | 7 12 15 15 15 19 20 20 20 20 20 20 23 25 25 25 Most Carried 25 | 4 15 15 15 15 15 16 20 18 20 20 20 24 25 25 19 Average Carried 16 | 1 11 13 14 15 15 15 17 15 18 20 19 20 24 22 12 Final Capacity 25 | 8 15 15 15 15 20 20 20 20 20 20 20 25 25 25 25 Final Carried 25 | 4 15 13 15 15 15 15 15 18 20 20 20 24 25 18 7 Class Distribution -------------------- 23% | Tank 17% | Bothacker-Gunner 16% | Mutant 10% | Scavenger-Gunner 7% | Scavenger-Mutant 7% | Scavenger-Tank 7% | Bothacker-Mutant 4% | Gunner 4% | Bothacker-Tank Dominant Class ---------------- Mutant | -10/Materials Mutant | -10/Mines Tank | -9/Materials Tank | -9/Mines Tank | -9/Exiles Tank | -8/Mines Tank | -8/Materials Scavenger-Tank | -7/Factory Scavenger-Mutant | -7/Garrison Scavenger-Mutant | -7/Factory Scavenger-Gunner | -7/DSF Scavenger-Tank | -6/Factory Bothacker-Gunner | -6/Garrison Bothacker-Gunner | -6/Factory Bothacker-Mutant | -5/Factory Resources | -11 -10 -10 -9 -9 -9 -8 -8 -7 -7 -7 -7 -6 -6 -6 -5 ----------- Run | Yrd Mat Min Mat Min Exi Min Mat Fac Gar Fac DSF Fac Gar Fac Fac Matter Collected 7038 | 237 526 128 1009 . . 139 1058 41 838 . 379 135 1594 434 520 Remotely . | . . . . . . . . . . . . . . . . Salvage Created 6834 | . 504 67 1425 39 . 180 986 41 1158 . 489 147 988 216 594 Parts 411 | . 27 11 81 2 . 16 68 2 62 . 25 13 58 12 34 Haulers Intercepted 8 | . 2 . 2 . . . 2 . . . 2 . . . . Recyclers Shooed 4 | . . . 2 . . . . . . . . . . . 2 Parts Field Recycled . | . . . . . . . . . . . . . . . . Retrieved Matter . | . . . . . . . . . . . . . . . . Parts Self-Destructed . | . . . . . . . . . . . . . . . . Prevented . | . . . . . . . . . . . . . . . . Parts Restored . | . . . . . . . . . . . . . . . . Kills | -11 -10 -10 -9 -9 -9 -8 -8 -7 -7 -7 -7 -6 -6 -6 -5 ------- Run | Yrd Mat Min Mat Min Exi Min Mat Fac Gar Fac DSF Fac Gar Fac Fac Combat Hostiles Destroyed 144 | . 10 7 32 . . 5 20 1 27 . 6 2 16 4 14 Melee 2 | . . . . . . . . . . . . . . . 2 Guns 119 | . 10 7 29 . . 2 16 1 23 . 6 2 16 2 5 AOE 17 | . . . 3 . . 3 4 . 3 . . . . . 4 Classes Destroyed 17 | . 6 1 4 . . . 4 1 1 . . . . . . Worker 8 | . 1 1 3 . . . . . . . . . . . 3 Builder 4 | . . . 1 . . . 2 . . . . . . . 1 Tunneler 3 | . 1 . . . . 2 . . . . . . . . . Hauler 8 | . 2 . 2 . . . 2 . . . 2 . . . . Recycler 4 | . . . 1 1 . . 2 . . . . . . . . Mechanic 1 | . . . . . . . 1 . . . . . . . . Operator 3 | . . . . . . . 2 . . . . 1 . . . Watcher 5 | . 1 . 1 . . . 1 . . . . . 2 . . Swarmer 39 | . 3 5 8 . . 2 8 . 7 . . . 2 . 4 Grunt 48 | . 7 . 13 . . 3 5 . 10 . 4 . 4 . 2 Brawler 4 | . . . 1 . . . . . 1 . 1 . . 1 . Sentry 25 | . . . 10 . . . 4 . 6 . . 1 4 . . Specialist 5 | . . . . . . . 2 . . . 2 . 1 . . Hunter 7 | . . . . . . . . 1 . . 1 1 1 1 2 Programmer 15 | . . . . . . . . . 3 . . . 4 1 7 Heavy 3 | . . . . . . . 1 . . . 1 . . 1 . Assembled 2 | . . 2 . . . . . . . . . . . . . Best Kill Streak 8 | . 3 3 8 1 . 3 8 1 5 . 4 2 3 1 6 Combat Bots Only 6 | . 3 3 6 . . 3 5 1 5 . 4 1 3 1 5 Max Kills in Single Turn 4 | . 2 1 4 1 . 2 3 1 3 . 2 1 2 1 3 Gunslinging 1 | . 1 . . . . . 1 . . . . . . . . Exploded 3 | . . . 3 . . 2 2 . 3 . . . . . 2 Melee 1 | . . . . . . . . . . . . . . . 1 Uniques/NPCs Destroyed . | . . . . . . . . . . . . . . . . Combat | -11 -10 -10 -9 -9 -9 -8 -8 -7 -7 -7 -7 -6 -6 -6 -5 -------- Run | Yrd Mat Min Mat Min Exi Min Mat Fac Gar Fac DSF Fac Gar Fac Fac Hostile Shots Fired 1399 | . 78 22 135 . . 17 111 10 407 . 32 42 203 46 296 Missed 408 | . 25 4 42 . . 5 28 3 126 . 11 18 56 10 80 Hits 991 | . 53 18 93 . . 12 83 7 281 . 21 24 147 36 216 Melee 6 | . . 2 . . . . . . . . 2 . . 1 1 Projectile 985 | . 53 16 93 . . 12 83 7 281 . 19 24 147 35 215 AOE 1 | . . . . . . . . . . . . . . . 1 Critical Strikes 35 | . 2 1 3 . . 1 5 . 5 . 1 . 4 3 10 Actively Blocked 1 | . . . . . . . . . . . . . 1 . . Part Disruptions 1 | . . . . . . . . . . . . . . . 1 Damage Taken 15238 | . 754 232 1226 . . 122 1725 123 2824 . 439 417 2097 839 4440 Core 1822 | . 93 6 117 . . . 215 . 261 . . 19 148 123 840 Absorbed by Shields 175 | . . . 66 . . . . . . . . . 31 27 51 Regen/Repaired (Parts) 496 | . 98 . . . . . 283 . . . . . . 115 . Core Remaining (%) 69 | 100 . 60 . . . 70 60 . . . 62 . . 65 . Volleys Fired 475 | . 61 11 73 . . 11 55 5 68 . 25 6 79 29 52 Largest 4 | . 2 2 3 . . 3 3 3 3 . 3 4 4 4 4 Hottest 900 | . 85 130 195 . . 69 79 69 111 . 79 129 132 123 900 Shots Fired 1140 | . 122 22 214 . . 28 157 15 168 . 53 24 209 51 77 Gun 1071 | . 122 22 212 . . 26 151 15 166 . 44 24 191 30 68 Cannon . | . . . . . . . . . . . . . . . . Launcher 17 | . . . 2 . . 2 6 . 2 . . . . . 5 Special 52 | . . . . . . . . . . . 9 . 18 21 4 Kinetic 978 | . 120 . 191 . . 26 151 15 154 . 44 24 191 30 32 Thermal 93 | . 2 22 21 . . . . . 12 . . . . . 36 Explosive 17 | . . . 2 . . 2 6 . 2 . . . . . 5 Electromagnetic . | . . . . . . . . . . . . . . . . Robot Hit Streak 30 | . 10 11 23 . . 8 21 6 30 . 6 8 15 8 11 Robot Miss Streak 7 | . 7 7 3 . . 4 4 1 7 . 6 3 4 3 4 Penetration Max 1 | . . . . . . . . . . . . . 1 1 1 Secondary Targets 25 | . 2 2 6 . . . 1 . 6 . 3 . 3 . 2 Max Gunslinging Chain 1 | . 1 1 1 . . . 1 . 1 . 1 . 1 . 1 Shots Hit Robots 824 | . 72 20 158 . . 16 98 11 142 . 41 15 136 42 73 Core Hits 418 | . 28 22 75 . . 11 51 3 79 . 48 8 51 9 33 Critical Kills 10 | . . . . . . . . . . . . 1 9 . . Critical Parts Destroyed 32 | . 1 . 2 . . . 1 . 1 . . 2 14 3 8 Critical Strikes 46 | . 1 . 2 . . . 1 . 2 . . 3 24 5 8 Burn 1 | . . . . . . . . . 1 . . . . . . Destroy 33 | . 1 . 2 . . . 1 . 1 . . 3 24 1 . Smash 12 | . . . . . . . . . . . . . . 4 8 Melee Attacks 84 | . . . . . . . . . 18 . . . 17 10 39 Impact 77 | . . . . . . . . . 11 . . . 17 10 39 Slashing . | . . . . . . . . . . . . . . . . Piercing . | . . . . . . . . . . . . . . . . Sneak Attacks 15 | . . . . . . . . . 7 . . . 1 6 1 Combat Hostiles . | . . . . . . . . . . . . . . . . Follow-up Attacks . | . . . . . . . . . . . . . . . . Damage Inflicted 16165 | . 1013 210 2736 5 . 444 2201 117 2674 . 662 362 1871 1072 2798 Guns 11751 | . 986 197 2396 . . 194 1489 117 2166 . 662 126 1797 492 1129 Cannons . | . . . . . . . . . . . . . . . . Explosions 2383 | . . . 325 . . 250 712 . 313 . . 236 . . 547 Melee 1962 | . . . . . . . . . 195 . . . 70 580 1117 Ramming 69 | . 27 13 15 5 . . . . . . . . 4 . 5 Kinetic 10593 | . 954 . 2140 . . 194 1489 117 2033 . 662 126 1797 492 589 Thermal 1394 | . 32 197 256 . . . . . 133 . . 236 . . 540 Explosive 2147 | . . . 325 . . 250 712 . 313 . . . . . 547 Electromagnetic . | . . . . . . . . . . . . . . . . Impact 1962 | . . . . . . . . . 195 . . . 70 580 1117 Slashing . | . . . . . . . . . . . . . . . . Piercing . | . . . . . . . . . . . . . . . . Highest Corruption 21 | . . . . 1 1 1 3 . 3 3 7 . 2 8 21 Average Corruption 4 | . . . . 1 1 1 3 . 1 3 4 . 1 3 11 Corruption Purged . | . . . . . . . . . . . . . . . . Corruption Blocked . | . . . . . . . . . . . . . . . . Effects 168 | . . . . . 3 2 21 . 16 1 9 . 20 12 84 Message Errors 46 | . . . . . 1 1 7 . 6 . 1 . 2 4 24 Matter Fused 41 | . . . . . 1 . 7 . 3 . 2 . 5 4 19 Heat Flow Errors 21 | . . . . . 1 . 3 . 2 . 1 . 4 2 8 Energy Discharges 16 | . . . . . . 1 1 . 1 1 2 . 1 1 8 Parts Rejected 2 | . . . . . . . . . . . . . . 1 1 Parts Fused 2 | . . . . . . . . . . . . . 1 . 1 Data Loss (minor) 19 | . . . . . . . . . 2 . 2 . 4 . 11 Data Loss (major) 5 | . . . . . . . 1 . 2 . 1 . 1 . . Misfires 9 | . . . . . . . 2 . . . . . . . 7 Alerts 1 | . . . . . . . . . . . . . . . 1 Misdirections 1 | . . . . . . . . . . . . . . . 1 Weapon Failures 5 | . . . . . . . . . . . . . 2 . 3 Overload Shots 4 | . . . . . . . . . . . . . . . 4 Overflow Damage 691 | . . . . . . . 15 . 65 . . . . 142 469 Projectiles . | . . . . . . . . . . . . . . . . Explosions 33 | . . . . . . . 15 . . . . . . . 18 Melee 658 | . . . . . . . . . 65 . . . . 142 451 Knockbacks 8 | . . . . . . . . . . . . . . . 8 Impact 8 | . . . . . . . . . . . . . . . 8 Kinetic . | . . . . . . . . . . . . . . . . Secondary . | . . . . . . . . . . . . . . . . Self-Inflicted Damage 279 | . . . 31 . . . 33 . . . . 125 . . 90 Shots 6 | . . . 1 . . . 1 . . . . 2 . . 2 Rammed 12 | . 3 . 5 . . . . . 1 . . . 2 . 1 Targets Rammed 16 | . 4 1 6 1 . . . . 1 . . . 2 . 1 Kicked . | . . . . . . . . . . . . . . . . Crushed 4 | . 1 1 1 1 . . . . . . . . . . . Highest Temperature 810 | . 36 85 279 . 171 33 474 121 278 . 129 155 353 159 810 Average Temperature 78 | . 9 37 52 . 161 13 78 65 83 . 42 71 104 48 135 Received Heat Transfer 3199 | . 384 . 372 . . 45 270 . 1002 . 144 24 645 106 207 Effects 13 | . . . . . . . 1 . 3 . . . 2 . 7 Shutdowns 3 | . . . . . . . 1 . . . . . 1 . 1 Energy Bleed 1 | . . . . . . . . . . . . . 1 . . Interference 3 | . . . . . . . . . 3 . . . . . . Matter Decay 1 | . . . . . . . . . . . . . . . 1 Short Circuit 1 | . . . . . . . . . . . . . . . 1 Damage (minor) 2 | . . . . . . . . . . . . . . . 2 Damage (major) 2 | . . . . . . . . . . . . . . . 2 Siege Activations . | . . . . . . . . . . . . . . . . Martial Activations . | . . . . . . . . . . . . . . . . Shielding Activations . | . . . . . . . . . . . . . . . . Robots Disrupted . | . . . . . . . . . . . . . . . . Combat Hostiles . | . . . . . . . . . . . . . . . . Robots Corrupted 6 | . . . . . . . . . 1 . . . . 2 3 Combat Hostiles 5 | . . . . . . . . . 1 . . . . 2 2 Parts Fried 6 | . . . . . . . . . 1 . . . . . 5 Impact Corruptions 28 | . . . . . . . . . 2 . . . . 3 23 Robots Melted . | . . . . . . . . . . . . . . . . Combat Hostiles . | . . . . . . . . . . . . . . . . Parts Melted 3 | . . . . . . . . . 1 . . 1 1 . . Heat Transferred 2016 | . 40 235 320 . . . . . 370 . . 150 . . 901 Parts Sabotaged . | . . . . . . . . . . . . . . . . Parts Stolen . | . . . . . . . . . . . . . . . . Parts Stripped . | . . . . . . . . . . . . . . . . Power Chain Reactions . | . . . . . . . . . . . . . . . . Alert | -11 -10 -10 -9 -9 -9 -8 -8 -7 -7 -7 -7 -6 -6 -6 -5 ------- Run | Yrd Mat Min Mat Min Exi Min Mat Fac Gar Fac DSF Fac Gar Fac Fac Maximum Alert Level 4 | . . . 1 . . . 1 . 4 2 2 1 4 2 1 Low Security (%) 54 | 100 100 100 39 100 . 100 82 100 20 . . . 2 . 92 Level 1 19 | . . . 60 . . . 17 . 14 . 21 100 22 . 7 Level 2 17 | . . . . . . . . . 39 100 78 . 41 100 . Level 3 7 | . . . . . . . . . 24 . . . 26 . . Level 4 1 | . . . . . . . . . . . . . 6 . . Level 5 . | . . . . . . . . . . . . . . . . High Security . | . . . . . . . . . . . . . . . . Max Security . | . . . . . . . . . . . . . . . . Sterilizations 1 | . . . . . . . . . . . 1 . . . . Peak Influence 1295 | . 60 60 301 111 . 72 271 86 1145 600 496 376 1295 679 244 Initial 679 | . . . 3 111 . . . 86 . 600 378 260 177 679 232 Average 249 | . 8 10 177 27 . 14 139 12 514 570 429 302 606 539 58 Influence Increases 5994 | . 309 125 939 5 . 122 730 30 1295 . 198 192 1288 236 525 Destroy 0b10 Robot/C 3060 | . 200 100 640 . . 100 400 20 540 . 160 40 420 160 280 Destroy 0b10 Robot/NC 180 | . 25 5 40 5 . 10 50 . . . 10 5 10 . 20 Destroy Leader 598 | . 56 20 186 . . 10 106 10 40 . 20 20 10 50 70 Allied During Kill 59 | . . . . . . . . . 3 . 8 . 15 25 8 Successful Hack 135 | . 13 . 18 . . . 39 . 37 . . . 28 . . Disable Machine 240 | . . . 30 . . . 15 . . . . 90 75 . 30 Anti-Garrison Action 1250 | . . . . . . . . . 600 . . . 650 . . Destroy Structure 322 | . . . 25 . . 2 60 . 60 . . 37 65 1 72 Partial Spotted 15 | . . . . . . . 15 . . . . . . . . Lose Combat Pursuer 135 | . 15 . . . . . 45 . 15 . . . 15 . 45 Influence Decreases 5994 | . 309 115 662 292 . 122 540 220 150 605 242 434 247 1056 1000 Entered New Map 2166 | . . . 7 176 . . . 104 . 545 162 236 77 616 243 Time Decay 2973 | . 299 115 615 116 . 122 480 116 . 60 . 198 . 310 542 Lost Part 523 | . 10 . 40 . . . 60 . 150 . 20 . 50 20 173 Lost Ally 332 | . . . . . . . . . . . 60 . 120 110 42 Squads Dispatched 23 | . 1 . 2 . . . 5 1 . . 2 1 . 4 7 Investigation 1 | . . . . . . . . . . . . 1 . . . Extermination 5 | . . . . . . . . 1 . . . . . 1 3 Reinforcement 15 | . 1 . 2 . . . 5 . . . 2 . . 1 4 Assault 2 | . . . . . . . . . . . . . . 2 . Garrison . | . . . . . . . . . . . . . . . . Intercept . | . . . . . . . . . . . . . . . . Searches Triggered . | . . . . . . . . . . . . . . . . Construction Impeded . | . . . . . . . . . . . . . . . . Haulers Reinforced . | . . . . . . . . . . . . . . . . Active Scanning Responses . | . . . . . . . . . . . . . . . . Cargo Convoy Interrupts . | . . . . . . . . . . . . . . . . Stealth | -11 -10 -10 -9 -9 -9 -8 -8 -7 -7 -7 -7 -6 -6 -6 -5 --------- Run | Yrd Mat Min Mat Min Exi Min Mat Fac Gar Fac DSF Fac Gar Fac Fac Distress Signals 19 | . 3 . 6 . . . 7 . . . . . 2 . 1 Communications Jammed 3 | . . . . . . . . . . . . . . . 3 Distress Signals . | . . . . . . . . . . . . . . . . Times Spotted 242 | . 27 7 47 . . 6 30 2 28 . 11 4 31 21 28 Peak Tracking Total 9 | . 5 2 5 . . 3 7 2 8 . 4 1 4 6 9 Tactical Retreats 9 | . 1 . . . . . 3 . 1 . . . 1 . 3 Traps | -11 -10 -10 -9 -9 -9 -8 -8 -7 -7 -7 -7 -6 -6 -6 -5 ------- Run | Yrd Mat Min Mat Min Exi Min Mat Fac Gar Fac DSF Fac Gar Fac Fac Traps Triggered 21 | . 1 . 3 . . . . . 3 . 2 . 11 . 1 Indirectly . | . . . . . . . . . . . . . . . . Trap Hack Attempts . | . . . . . . . . . . . . . . . . Triggered . | . . . . . . . . . . . . . . . . Disarmed 3 | . 3 . . . . . . . . . . . . . . Reprogrammed . | . . . . . . . . . . . . . . . . Reused . | . . . . . . . . . . . . . . . . Traps Extracted . | . . . . . . . . . . . . . . . . Installed 1 | . . . . . . . . . . . . . 1 . . Triggered . | . . . . . . . . . . . . . . . . Most Traps Carried 1 | . . . . . . . . . . . . . 1 . . Machines | -11 -10 -10 -9 -9 -9 -8 -8 -7 -7 -7 -7 -6 -6 -6 -5 ---------- Run | Yrd Mat Min Mat Min Exi Min Mat Fac Gar Fac DSF Fac Gar Fac Fac Machines Disabled 23 | . . . 2 . . . 1 . 2 . . 6 10 . 2 Max in Single Turn 5 | . . . 1 . . . 1 . 1 . . 5 1 . . Garrison Relay 8 | . . . . . . . . . 2 . . . 6 . . Machines Repaired . | . . . . . . . . . . . . . . . . Machines Dismantled . | . . . . . . . . . . . . . . . . Machines Sabotaged . | . . . . . . . . . . . . . . . . Overloaded Fab Kills . | . . . . . . . . . . . . . . . . Hacking | -11 -10 -10 -9 -9 -9 -8 -8 -7 -7 -7 -7 -6 -6 -6 -5 --------- Run | Yrd Mat Min Mat Min Exi Min Mat Fac Gar Fac DSF Fac Gar Fac Fac Machines Accessed 36 | . 4 . 4 1 . . 9 3 3 1 . 2 2 3 4 Terminals 18 | . 3 . . . . . 5 1 3 1 . . 2 2 1 Fabricators 3 | . . . . . . . . 1 . . . 1 . . 1 Repair Stations 5 | . 1 . 1 . . . 2 . . . . . . 1 . Recycling Units 3 | . . . 1 . . . 1 . . . . . . . 1 Scanalyzers 3 | . . . 2 . . . 1 . . . . . . . . Garrison Access 3 | . . . . . . . . 1 . . . 1 . . 1 Total Hacks 74 | . 9 . 12 1 . . 22 5 6 1 . 5 2 5 6 Successful 48 | . 7 . 8 1 . . 15 3 3 1 . 5 2 1 2 Failed 25 | . 2 . 3 . . . 7 2 3 . . . . 4 4 Catastrophic 4 | . . . . . . . 1 . . . . . . . 3 Database Lockouts 1 | . . . 1 . . . . . . . . . . . . Manual 27 | . 5 . 1 . . . 12 1 . . . . . 4 4 Terminals 32 | . 7 . . . . . 11 1 6 1 . . 2 3 1 Fabricators 8 | . . . . . . . . 2 . . . 4 . . 2 Repair Stations 14 | . 2 . 3 . . . 7 . . . . . . 2 . Recycling Units 4 | . . . 1 . . . 1 . . . . . . . 2 Scanalyzers 11 | . . . 8 . . . 3 . . . . . . . . Garrison Access 4 | . . . . . . . . 2 . . . 1 . . 1 Terminal Hacks 10 | . 2 . . 1 . . 1 . 3 1 . . 2 . . Part Schematic 2 | . 1 . . . . . 1 . . . . . . . . Open Door 2 | . . . . 1 . . . . 1 . . . . . . Open DSF 1 | . . . . . . . . . . 1 . . . . . Emergency Access Points 1 | . . . . . . . . . . . . . 1 . . Disarm Traps 1 | . 1 . . . . . . . . . . . . . . Garrison Registry 1 | . . . . . . . . . . . . . 1 . . Patrol Navigation 1 | . . . . . . . . . 1 . . . . . . Security Stations 1 | . . . . . . . . . 1 . . . . . . Fabricator Hacks 6 | . . . . . . . . 2 . . . 4 . . . Load Schematic 3 | . . . . . . . . 1 . . . 2 . . . Build 3 | . . . . . . . . 1 . . . 2 . . . Repair Station Hacks 10 | . 2 . 2 . . . 6 . . . . . . . . Scan Component 5 | . 1 . 1 . . . 3 . . . . . . . . Repair 5 | . 1 . 1 . . . 3 . . . . . . . . Recycling Unit Hacks . | . . . . . . . . . . . . . . . . Scanalyzer 8 | . . . 5 . . . 3 . . . . . . . . Insert Component 1 | . . . . . . . 1 . . . . . . . . Analyze 1 | . . . . . . . 1 . . . . . . . . Retrieve Study 6 | . . . 5 . . . 1 . . . . . . . . Garrison Access Hacks 3 | . . . . . . . . 1 . . . 1 . . 1 Unlock Access 2 | . . . . . . . . 1 . . . 1 . . . Coupler Status 1 | . . . . . . . . . . . . . . . 1 Unauthorized Hacks 11 | . 3 . 1 . . . 5 . . . . . . 1 1 Terminals 7 | . 3 . . . . . 4 . . . . . . . . Track 1 | . . . . . . . 1 . . . . . . . . Botnet 6 | . 3 . . . . . 3 . . . . . . . . Fabricators 1 | . . . . . . . . . . . . . . . 1 Liberate 1 | . . . . . . . . . . . . . . . 1 Repair Stations 1 | . . . . . . . . . . . . . . 1 . Mechanics 1 | . . . . . . . . . . . . . . 1 . Recycling Units 2 | . . . 1 . . . 1 . . . . . . . . Mask 2 | . . . 1 . . . 1 . . . . . . . . Scanalyzers . | . . . . . . . . . . . . . . . . Garrison Access . | . . . . . . . . . . . . . . . . Data Cores Recovered 1 | . . . . . . . 1 . . . . . . . . Used . | . . . . . . . . . . . . . . . . Hacking Detections 23 | . 1 . 2 . . . 6 2 2 . . 1 2 3 4 Full Trace Events 1 | . . . . . . . . . . . . 1 . . . Feedback Events . | . . . . . . . . . . . . . . . . Feedback Blocked . | . . . . . . . . . . . . . . . . Robot Schematics Acquired . | . . . . . . . . . . . . . . . . Robots Built . | . . . . . . . . . . . . . . . . Authchips . | . . . . . . . . . . . . . . . . Time . | . . . . . . . . . . . . . . . . Total Robot Build Rating . | . . . . . . . . . . . . . . . . Part Schematics Acquired 3 | . 1 . . . . . 2 . . . . . . . . Parts Built 5 | . . . . . . . . 2 . . . 3 . . . Authchips 2 | . . . . . . . . 1 . . . 1 . . . Time 197 | . . . . . . . . 73 . . . 124 . . . Total Part Build Rating 13 | . . . . . . . . 6 . . . 7 . . . Part Studies Acquired 6 | . . . 5 . . . 1 . . . . . . . . Parts Repaired 5 | . 1 . 1 . . . 3 . . . . . . . . Time 185 | . 26 . 44 . . . 115 . . . . . . . . Parts Recycled . | . . . . . . . . . . . . . . . . Recycled Matter . | . . . . . . . . . . . . . . . . Retrieved Matter . | . . . . . . . . . . . . . . . . Retrieved Components . | . . . . . . . . . . . . . . . . Parts Scanalyzed 1 | . . . . . . . 1 . . . . . . . . Part Schematics Acquired 1 | . . . . . . . 1 . . . . . . . . Parts Damaged . | . . . . . . . . . . . . . . . . Bothacking | -11 -10 -10 -9 -9 -9 -8 -8 -7 -7 -7 -7 -6 -6 -6 -5 ------------ Run | Yrd Mat Min Mat Min Exi Min Mat Fac Gar Fac DSF Fac Gar Fac Fac Used RIF Installer 2 | . . . . . . . . . 1 . . . 1 . . Program Shield 1 | . . . . . . . . . . . . . 1 . . Robots Hacked 30 | . . . . . . . . . . . 5 . 9 14 2 Non-combat 6 | . . . . . . . . . . . . . . 6 . Combat 24 | . . . . . . . . . . . 5 . 9 8 2 Robot Hacks Applied 30 | . . . . . . . . . . . 5 . 9 14 2 drop_inventory 1 | . . . . . . . . . . . . . . 1 . reboot_system 3 | . . . . . . . . . . . 1 . 1 1 . overwrite_iff 6 | . . . . . . . . . . . 2 . . 4 . streamctrl_high 2 | . . . . . . . . . . . . . 2 . . formatsys_low 2 | . . . . . . . . . . . . . . 2 . formatsys_high 16 | . . . . . . . . . . . 2 . 6 6 2 Relay Couplers Released 42 | . . . . . . . . . 12 . . . 26 4 . Machine Destruction 34 | . . . . . . . . . 8 . . . 26 . . Programmers 8 | . . . . . . . . . 4 . . . . 4 . Attached 14 | . . . . . . . . . 2 . 1 . 5 5 1 Fabnet Peak Effective % . | . . . . . . . . . . . . . . . . Robots Rewired 2 | . . . . . . . . . 2 . . . . . . Allies Hacked 3 | . . . . . . . . . . . . . . . 3 Hacks Repelled . | . . . . . . . . . . . . . . . . Allies | -11 -10 -10 -9 -9 -9 -8 -8 -7 -7 -7 -7 -6 -6 -6 -5 -------- Run | Yrd Mat Min Mat Min Exi Min Mat Fac Gar Fac DSF Fac Gar Fac Fac Total Allies 31 | . . . . . . . . . 2 . 4 . 8 12 5 Largest Group 5 | . . . . . . . . . 2 2 2 . 2 5 4 Highest-Rated Group 130 | . . . . . . . . . 51 51 55 . 64 130 110 Highest-Rated Ally 49 | . . . . . . . . . 31 31 31 . 41 47 49 Total Orders 3 | . . . . . . . . . . . . . 2 1 . STAY 2 | . . . . . . . . . . . . . 2 . . AID 1 | . . . . . . . . . . . . . . 1 . Ally Attacks 115 | . . . . . . . . . . . 26 . 24 45 20 Total Damage 2963 | . . . . . . . . . . . 475 . 1052 1068 368 Kills 11 | . . . . . . . . . . . 2 . 5 4 . Allies Corrupted 3 | . . . . . . . . . . . . . . 1 2 Allies Melted . | . . . . . . . . . . . . . . . . Intel | -11 -10 -10 -9 -9 -9 -8 -8 -7 -7 -7 -7 -6 -6 -6 -5 ------- Run | Yrd Mat Min Mat Min Exi Min Mat Fac Gar Fac DSF Fac Gar Fac Fac Active Infowar (turns) 7182 | . 1106 83 1184 475 824 537 1297 . 516 . . . . . 1160 Seismic 5143 | . 743 83 1184 475 824 537 1297 . . . . . . . . T.N.C. 363 | . 363 . . . . . . . . . . . . . . Jamming 1676 | . . . . . . . . . 516 . . . . . 1160 Robot Analysis Total . | . . . . . . . . . . . . . . . . Derelict Logs Recovered 1 | . . 1 . . . . . . . . . . . . . Drone Launches . | . . . . . . . . . . . . . . . . Drone Recoveries . | . . . . . . . . . . . . . . . . Exploration | -11 -10 -10 -9 -9 -9 -8 -8 -7 -7 -7 -7 -6 -6 -6 -5 ------------- Run | Yrd Mat Min Mat Min Exi Min Mat Fac Gar Fac DSF Fac Gar Fac Fac Turns Passed 17481 | 161 1624 716 2319 494 824 537 1529 749 2412 135 317 401 2302 686 2275 Spaces Moved 7691 | 95 808 410 1174 300 369 197 646 344 1245 83 141 182 883 247 567 Core 51 | 5 . . . . . . . . . . . . . . 46 Treads 7503 | 90 808 410 1174 300 369 197 646 344 1245 83 141 182 883 247 384 Legs 9 | . . . . . . . . . . . . . . . 9 Wheels 128 | . . . . . . . . . . . . . . . 128 Hover . | . . . . . . . . . . . . . . . . Flight . | . . . . . . . . . . . . . . . . Fastest Speed 50 | 50 160 160 160 160 160 240 150 160 160 162 162 162 205 210 195 Average Speed 191 | 154 160 160 160 160 223 240 163 206 169 162 162 201 215 221 338 Slowest Speed 1700 | 160 160 160 200 160 240 240 213 210 210 162 162 222 229 280 1700 Overloaded Moves . | . . . . . . . . . . . . . . . . Propulsion Burnouts . | . . . . . . . . . . . . . . . . Robots Hopped . | . . . . . . . . . . . . . . . . Potential Cave-ins . | . . . . . . . . . . . . . . . . Cave-ins Triggered . | . . . . . . . . . . . . . . . . Exploration Rate (%) 48 | 4 96 61 97 59 73 39 64 11 74 3 83 3 87 5 16 Regions Visited 15 Branch Regions 4 Pre-discovered Areas 1 | . . 1 . . . . . . . . . . . . . Known Exits Taken 3 | . . . . . . . . 1 . 1 . 1 . . . Unknown Exits Taken 9 | 1 1 1 1 1 1 1 1 . . . . . . 1 . Scrap Searched 3 | . . 1 . 1 . 1 . . . . . . . . . Spaces Dug 2 | . . . . . . . . . 2 . . . . . . Terrain Destroyed 212 | . . . 23 . . 2 59 . 31 . . 59 5 4 29 Melee 2 | . . . . . . . . . 2 . . . . . . Projectile 7 | . . . . . . . . . . . . 1 . 4 2 AOE 197 | . . . 23 . . 2 59 . 29 . . 57 . . 27 Terrain Rammed . | . . . . . . . . . . . . . . . . Walls Destroyed . | . . . . . . . . . . . . . . . . Machines Disabled . | . . . . . . . . . . . . . . . . Actions | -11 -10 -10 -9 -9 -9 -8 -8 -7 -7 -7 -7 -6 -6 -6 -5 --------- Run | Yrd Mat Min Mat Min Exi Min Mat Fac Gar Fac DSF Fac Gar Fac Fac Total 9486 | 109 1016 446 1471 314 370 241 1011 372 1402 84 195 201 1142 333 779 Wait 750 | . 106 15 147 12 . 30 248 13 18 2 9 3 49 21 77 Move 7674 | 94 807 409 1173 299 368 196 645 343 1243 82 140 181 881 246 567 Hop . | . . . . . . . . . . . . . . . . Pick Up 109 | 9 22 1 16 . . . 15 5 16 . 3 2 17 . 3 Fast Attach 52 | 1 1 2 7 . . . 11 1 8 . . 2 7 1 11 Attach 69 | 5 4 . 8 . . . 8 1 12 . 2 1 8 5 15 Detach 4 | . . . 1 . . . . 1 . . . . . 1 1 Swap 112 | . 4 4 17 1 1 3 12 1 8 . 8 4 29 12 8 Drop 93 | . 7 3 23 1 1 1 17 2 4 . 6 2 20 2 4 Fire 475 | . 61 11 73 . . 11 55 5 68 . 25 6 79 29 52 Melee 84 | . . . . . . . . . 18 . . . 17 10 39 Ram . | . . . . . . . . . . . . . . . . Kick . | . . . . . . . . . . . . . . . . Crush 16 | . 4 1 6 1 . . . . 1 . . . 2 . 1 Escape Stasis 23 | . . . . . . . . . 6 . . . 17 . . Rewire 24 | . . . . . . . . . . . 2 . 15 6 1 Trap 1 | . . . . . . . . . . . . . 1 . . Miscellaneous . | . . . . . . . . . . . . . . . . Route ------- -11/Scrapyard -10/Materials (discovered 5 exits: *Mat x3 / [*Min x2]) -10/Mines -9/Materials (discovered 4 exits: *Mat x3 / *Min) -9/Mines (discovered 2 exits: *Mat / [*Exi]) -9/Exiles (discovered 2 exits: [*Min x2]) -8/Mines -8/Materials -7/Factory (discovered 3 exits: *Fac / [*Low] / Gar) -7/Garrison (discovered 3 exits: *Fac x3) -7/Factory -7/DSF -6/Factory -6/Garrison (discovered 3 exits: *Fac x3) -6/Factory -5/Factory History --------- Turn | Location | Event 10 | -11/Scrapyard | Discovered new exit (range 15) 162 | -11/Scrapyard | Entered Materials 301 | -10/Materials | Build established: Mutant 332 | -10/Materials | Discovered new exit (range 13) 866 | -10/Materials | Discovered new exit (range 16) 1062 | -10/Materials | Derelicts attacked the area 1187 | -10/Materials | Repaired Lgt. Treads 1207 | -10/Materials | Discovered new exit (range 6) 1376 | -10/Materials | Discovered new exit (range 14) 1641 | -10/Materials | Discovered new exit (range 10) 1786 | -10/Materials | Entered Mines 1843 | -10/Mines | Assembled infested the area 1991 | -10/Mines | Received a Rocket Launcher from a helpful Derelict 2066 | -10/Mines | Found a hidden stash of uninstalled traps 2074 | -10/Mines | Learned location of Recycling (-7) 2099 | -10/Mines | Discovered new exit (range 4) 2502 | -10/Mines | Entered Materials 2502 | -9/Materials | Evolved 2 slots: Utility x1, Weapon x1 2787 | -9/Materials | Build established: Gunner 3111 | -9/Materials | Central database locked down 3494 | -9/Materials | Repaired Broken Imp. Treads 3618 | -9/Materials | Build established: Scavenger-Tank 3710 | -9/Materials | Discovered new exit (range 10) 3936 | -9/Materials | Discovered new exit (range 9) 4168 | -9/Materials | Discovered new exit (range 15) 4264 | -9/Materials | Build established: Tank 4285 | -9/Materials | Discovered new exit (range 16) 4821 | -9/Materials | Entered Mines 5081 | -9/Mines | Met a Derelict who couldn't figure out how to use a Trap Extractor 5181 | -9/Mines | Deemed a non-threat by the Exiles lab entrance 5182 | -9/Mines | Discovered new exit (range 5) 5248 | -9/Mines | Discovered new exit (range 8) 5254 | -9/Mines | Found a damaged Exp. Sensor Array with a note attached 5315 | -9/Mines | Entered Exiles 5354 | -9/Exiles | Met 8R-AWN 5381 | -9/Exiles | Met EX-HEX 5479 | -9/Exiles | Met EX-DEC 5532 | -9/Exiles | Visited The Gauntlet 5771 | -9/Exiles | Discovered new exit (range 10) 5937 | -9/Exiles | Met EX-BIN 6112 | -9/Exiles | Discovered new exit (range 14) 6139 | -9/Exiles | Entered Mines 6560 | -8/Mines | Discovered new exit (range 16) 6676 | -8/Mines | Entered Materials 6676 | -8/Materials | Evolved 2 slots: Propulsion x1, Utility x1 7036 | -8/Materials | Repaired Autogun+ 7654 | -8/Materials | Repaired Imp. Treads 7663 | -8/Materials | Met 7R-MNS 7706 | -8/Materials | Repaired Imp. Assault Rifle 7943 | -8/Materials | Discovered new exit (range 10) 8012 | -8/Materials | Build established: Gunner 8014 | -8/Materials | Lost 6 parts (3u3w) 8205 | -8/Materials | Entered Factory 8205 | -7/Factory | Evolved 2 slots: Propulsion x1, Utility x1 8206 | -7/Factory | Caught up to 7R-MNS 8532 | -7/Factory | Build established: Scavenger-Tank 8697 | -7/Factory | Discovered new exit (range 8) 8707 | -7/Factory | Fabricated Adv. Treads (x2) 8817 | -7/Factory | Discovered new exit (range 15) 8928 | -7/Factory | Build established: Scavenger-Gunner 8951 | -7/Factory | Identified exit to Garrison 8954 | -7/Factory | Entered Garrison 9088 | -7/Garrison | Triggered checkpoint 9242 | -7/Garrison | Triggered checkpoint 9278 | -7/Garrison | Garrison Relay disabled 9341 | -7/Garrison | Discovered new exit (range 10) 9456 | -7/Garrison | Triggered checkpoint 9457 | -7/Garrison | Triggered checkpoint 9536 | -7/Garrison | Lost 6 parts (3n1u2w) 9554 | -7/Garrison | Triggered checkpoint 9672 | -7/Garrison | Triggered checkpoint 9752 | -7/Garrison | Discovered new exit (range 10) 9958 | -7/Garrison | Triggered checkpoint 10051 | -7/Garrison | Lost 9 parts (1p4n1u3w) 10078 | -7/Garrison | Learned Factory security intel 10384 | -7/Garrison | Build established: Scavenger-Mutant 10416 | -7/Garrison | Discovered new exit (range 13) 11119 | -7/Garrison | Installed Relay Interface Framework 11301 | -7/Garrison | Garrison Relay disabled 11366 | -7/Garrison | Entered Factory 11366 | -7/Factory | Accompanied by 2 allies 11499 | -7/Factory | Identified exit to DSF 11501 | -7/Factory | Entered DSF 11501 | -7/DSF | Accompanied by 2 allies 11530 | -7/DSF | Additional patrols routed to DSF 11580 | -7/DSF | Lost 3 allies 11642 | -7/DSF | Discovered new exit (range 14) 11747 | -7/DSF | Sterilization system engaged 11767 | -7/DSF | Ambient heat levels rising (+10) 11782 | -7/DSF | Ambient heat levels rising (+10) 11797 | -7/DSF | Ambient heat levels rising (+10) 11812 | -7/DSF | Ambient heat levels rising (+10) 11818 | -7/DSF | Entered Factory 11818 | -6/Factory | Evolved 2 slots: Utility x1, Weapon x1 11900 | -6/Factory | Fabricated Huge Storage Unit? 12014 | -6/Factory | Build established: Scavenger-Tank 12108 | -6/Factory | Fabricated Adv. Treads (x2) 12217 | -6/Factory | Identified exit to Garrison 12219 | -6/Factory | Entered Garrison 12373 | -6/Garrison | Triggered checkpoint 12433 | -6/Garrison | Build established: Bothacker-Tank 12467 | -6/Garrison | Garrison Relay disabled 12517 | -6/Garrison | Garrison Relay disabled 12605 | -6/Garrison | Heavy support dispatched to Factory 12610 | -6/Garrison | Garrison Relay disabled 12826 | -6/Garrison | Spotted B-75 Beast 12833 | -6/Garrison | Triggered checkpoint 12847 | -6/Garrison | Hijacked Beast 5a control node with streamctrl_high 12950 | -6/Garrison | Discovered new exit (range 10) 13057 | -6/Garrison | H-XX Assembler disabled 13129 | -6/Garrison | Build established: Bothacker-Gunner 13185 | -6/Garrison | Discovered new exit (range 86) 13185 | -6/Garrison | Discovered new exit (range 60) 13185 | -6/Garrison | Discovered new exit (range 23) 13201 | -6/Garrison | Triggered checkpoint 13252 | -6/Garrison | Garrison Relay disabled 13343 | -6/Garrison | Triggered checkpoint 13689 | -6/Garrison | Expanded RIF knowledge: Program Shield 13800 | -6/Garrison | Garrison Relay disabled 13877 | -6/Garrison | Spotted B-75 Beast 13887 | -6/Garrison | Allies destroyed B-75 Beast 14038 | -6/Garrison | Lost 3 allies 14189 | -6/Garrison | Triggered checkpoint 14403 | -6/Garrison | Triggered checkpoint 14413 | -6/Garrison | Garrison Relay disabled 14521 | -6/Garrison | Entered Factory 14521 | -6/Factory | Accompanied by 1 ally 14832 | -6/Factory | Discovered new exit (range 16) 14871 | -6/Factory | First assault squad dispatched 15042 | -6/Factory | Lost 3 allies 15207 | -6/Factory | Entered another Factory area 15207 | -5/Factory | Accompanied by 4 allies 15207 | -5/Factory | Evolved 2 slots: Utility x2 15834 | -5/Factory | Lost 3 allies 15881 | -5/Factory | Lost 3 parts (1n2w) 16115 | -5/Factory | Lost 4 parts (3n1w) 16148 | -5/Factory | Build established: Bothacker-Mutant 16157 | -5/Factory | System corruption reached 10% 16200 | -5/Factory | Lost 9 parts (1p4n2u2w) 16518 | -5/Factory | Core integrity fell below 50% 17102 | -5/Factory | Lost 3 allies 17148 | -5/Factory | Lost 3 parts (1n1u1w) 17393 | -5/Factory | Lost 3 parts (1p1n1u) 17478 | -5/Factory | Core integrity fell below 20% 17482 | -5/Factory | Self-destructed Last Messages --------------- 17457_ Variable Charge Gun destroyed. 17458_ Overheating: Relay Coupler [Sentry] damaged (-3). 17458_ Overheating: Variable Charge Gun damaged (-40). 17459_ Hvy. Pick destroyed. 17459_ Relay Coupler [Sentry] destroyed. 17459_ Knocked back. 17465_ System corrupted: Component data lost. 17468_ K-01 Serf collects debris. 17468_ Fighter 6a knocked back. 17472_ Fighter 6a destroyed. 17472_ K-01 Serf collects debris. 17473_ Acquired 36 matter. 17477_ K-01 Serf collects debris. 17477_ Knocked back. 17480_ Acquired 8 matter. 17481_ K-01 Serf collects debris. 17482_ Arm. Wheel destroyed. 17482_ Knocked back. Map ----- +----------------------------------------------------+ | ??????????????????????######## ############### | | ??????????????????????# | | ??????????????????????# | | ??????????????????????# | | ??????????????????????# """" """" """" """" | | ??????????????????????# """" """" """" """" | | ??????????????????????# """" """" """" """" | | ??????????????????????# !! """" """" """" """" | | ??????????????? ????? ! """" """" """" """" | | ?????????????? ???? """" """" """" """" | | ??????????????? ???? " " | | ???????????????? ??? "Y" | | ????????????????? ??? ??""" | | ????????????######+#####################+### | | ????????????# #???????# # | | ????????????# #???????#! # [ [ | | ????????????# #???????# # % | | ????????????# ######### # | | ????????????# + / # | | ????????????# # ####### """ """ # | | ????????????# # # ! !# """ """ ###### | | ????????????# +*+ # """ """ #?????# | | ????????????#!! """ # # """ ###########?????? | | ????????????#!! T" #o# """ #???????????????? | | ????????????# """ #%#?""" #???????????????? | | ????????????# @!##?###????????????????? | | ????????????## ########### ;#######??????????????? | | ????????????????????????# % #??????????????? | | ??????????????########### k #??????????????? | | ??????????? #??????????????? | | ??????????? = #??????????????? | | ??????????? H #??????????????? | | ???????????? % #??????????????? | | ???????????? #??????????????? | | ?????????????############ #??????????????? | | ????????????????????????# #??????????????? | | ????????????????????????######"#;##??????????????? | | ?????????????????????????????? # #???????????????? | | ??????????????????????????????##?#???????????????? | | | | | | | | | | | | | | | | | | | | | | | +----------------------------------------------------+ Best States ------------- Heat Dissipation 67 Energy Generation 23 Energy Capacity 340 Matter Stores 300 Matter Capacity 300 Sight Range 16 Terrain Scan Density 10 Jamming Range 12 Armor Coverage 600 Weapon Cycling 25 Evasion (%) 40 Targeting Accuracy 8 Core Analysis 6 Armor Integrity Analysis 40 Recoil Reduction 4 Relay Coupler Types 4 Relay Coupler Value 80 Authchip Count 1 Item Schematics ----------------- Huge Storage Unit | -10/Materials | Hacked Lgt. Treads | -8/Materials | Scanalyzed Adv. Treads | -8/Materials | Hacked Robot Schematics ------------------ None Fabricated ------------ Adv. Treads | x2 | -7/Factory | Authchip Huge Storage Unit | x1 | -6/Factory | Authchip Adv. Treads | x2 | -6/Factory Repaired ---------- Lgt. Treads | 30% | -10/Materials Imp. Treads | 99% | -9/Materials | Broken Autogun | 13% | -8/Materials Imp. Treads | 38% | -8/Materials Imp. Assault Rifle | 37% | -8/Materials Studied --------- Autogun | -9/Materials | Hacked Hvy. Assault Rifle | -9/Materials | Hacked Rocket Launcher | -9/Materials | Hacked Lgt. Treads | -9/Materials | Hacked EM Pulse Gun | -9/Materials | Hacked Adv. Treads | -8/Materials | Hacked Alien Tech Used ----------------- None Achievements -------------- None Challenges ------------ None Game ------ Seed ImpactTrackerJammer Manual? 0 Play Time 01:52:37 Cumulative 283.3 hours Start 2026.09.17 @ 11:08:23 End 2026.09.18 @ 14:46:09 Sessions 3 Manual Loads 0 Difficulty Rogue Special Mode None Game No. 307 Rogue 307 Adventurer 0 Explorer 0 Win Type - Total 3 Types 3/0/0/0/0/0/0/0/0/0 Lore% 33 Gallery% 57 Achievement% 40 Wizard Run 0 Options --------- Layout 1 ASCII 0 Keyboard 0 Movement Numpad Keybinds 0 Fullscreen 2 Font 24/Smallcaps Map View 50x35 Zoom Use 0% Tactical HUD 1 Map Filters NONE Filters NONE Steam 1 RUN: 62c557bb-7c22-4796-80cd-dbb4805aa977